fUST/lending_fUST_20240822
["ID","MTS","AMOUNT","RATE_DAILY","PERIOD"]
[335521115,1724301059076,-500.0,0.00020273,7]
[335521116,1724301059087,-2151.56,0.00020273,7]
[335521117,1724301059098,-733.58,0.00020273,7]
[335521118,1724301059108,-500.0,0.00020273,7]
[335521119,1724301059118,-455.1087915,0.00020273,7]
[335521120,1724301059128,-500.0,0.00020273,7]
[335521121,1724301059139,-500.0,0.00020273,7]
[335521122,1724301059150,-500.0,0.00020273,7]
[335521123,1724301059161,-500.0,0.00020273,7]
[335521124,1724301059172,-500.0,0.00020273,7]
[335521125,1724301059184,-863.24,0.00020273,7]
[335521126,1724301059195,-635.96,0.00020273,7]
[335521127,1724301059206,-500.0,0.00020273,7]
[335521128,1724301059216,-2005.19,0.00020273,7]
[335521129,1724301059226,-500.0,0.00020273,2]
[335521130,1724301059237,-500.0,0.00020273,7]
[335521131,1724301059247,-500.0,0.00020273,7]
[335521132,1724301059258,-500.0,0.00020273,7]
[335521133,1724301059269,-500.0,0.00020273,7]
[335521134,1724301059279,-500.0,0.00020273,7]
[335521135,1724301059290,-648.12,0.00020273,7]
[335521136,1724301059300,-500.0,0.00020273,7]
[335521137,1724301059310,-912.69,0.00020273,7]
[335521138,1724301059321,-500.0,0.00020273,7]
[335521139,1724301059330,-3577.9,0.00020273,7]
[335521140,1724301059341,-799.92,0.00020273,7]
[335521141,1724301059352,-500.0,0.00020273,7]
[335521142,1724301059362,-500.0,0.00020273,7]
[335521143,1724301059372,-500.0,0.00020273,7]
[335521144,1724301059383,-1034.94,0.00020273,7]
[335521145,1724301059394,-807.61,0.00020273,7]
[335521146,1724301059404,-500.0,0.00020273,7]
[335521147,1724301059414,-508.07,0.00020273,7]
[335521148,1724301059424,-500.0,0.00020273,7]
[335521149,1724301059434,-509.84489193,0.00020273,7]
[335521150,1724301059445,-500.0,0.00020273,7]
[335521151,1724301059455,-521.09,0.00020273,7]
[335521152,1724301059466,-500.0,0.00020273,7]
[335521153,1724301059476,-500.0,0.00020273,7]
[335521154,1724301059486,-500.0,0.00020273,7]
[335521155,1724301059497,-500.0,0.00020273,7]
[335521156,1724301059507,-453.88066063,0.00020273,7]
[335521157,1724301059517,-500.0,0.00020273,7]
[335521158,1724301059527,-500.0,0.00020273,7]
[335521159,1724301059537,-500.0,0.00020273,7]
[335521160,1724301059548,-500.0,0.00020273,7]
[335521161,1724301059559,-500.0,0.00020273,7]
[335521162,1724301059569,-543.35,0.00020273,7]
[335521163,1724301059579,-500.0,0.00020273,7]
[335521164,1724301059592,-2199.0,0.00020273,7]
[335521165,1724301059602,-1134.35,0.00020273,7]
[335521166,1724301059611,-500.0,0.00020273,7]
[335521167,1724301059622,-733.53,0.00020273,7]
[335521168,1724301059633,-500.0,0.00020273,2]
[335521169,1724301059644,-500.0,0.00020273,7]
[335521170,1724301059654,-500.0,0.00020273,7]
[335521171,1724301059665,-500.0,0.00020273,7]
[335521172,1724301059675,-500.0,0.00020273,7]
[335521173,1724301059686,-500.0,0.00020273,7]
[335521174,1724301059697,-741.48,0.00020273,7]
[335521175,1724301059707,-555.27,0.00020273,7]
[335521176,1724301059718,-250.0,0.00020321,2]
[335521177,1724301059728,-3142.89546402,0.00020377,2]
[335521178,1724301059738,-1000.0,0.00020478,2]
[335521179,1724301059747,-1000.0,0.00020496,2]
[335521180,1724301059757,-1000.0,0.0002051,2]
[335521181,1724301059767,-1000.0,0.00020531,2]
[335521182,1724301059777,-1752.128587,0.00020548,2]
[335521183,1724301059788,-1000.0,0.0002055,2]
[335521184,1724301059799,-5387.42477548,0.00020551,15]
[335521185,1724301059809,-1000.0,0.00020587,2]
[335521186,1724301059819,-603.0,0.000206,2]
[335521187,1724301059829,-1000.0,0.00020611,2]
[335521188,1724301059839,-5311.37795596,0.00020614,2]
[335521189,1724301059849,-1500.0,0.00020619,2]
[335521190,1724301059859,-300.0,0.0002062,2]
[335521191,1724301059871,-1000.0,0.00020646,2]
[335521192,1724301059881,-4257.4559107,0.0002066,7]
[335521193,1724301059892,-1000.0,0.00020694,2]
[335521194,1724301059903,-287.501837,0.00020707,2]
[335521195,1724301059915,-1000.0,0.00020716,2]
[335521196,1724301059926,-1000.0,0.00020716,2]
[335521197,1724301059936,-1000.0,0.00020727,2]
[335521198,1724301059946,-1000.0,0.00020805,2]
[335521199,1724301059956,-1000.0,0.00020805,2]
[335521200,1724301059967,-345.80770526,0.0002082,2]
[335521201,1724301059977,-500.0,0.00020821,7]
[335521202,1724301059986,-500.0,0.00020821,7]
[335521203,1724301059997,-500.0,0.00020821,7]
[335521204,1724301060007,-500.0,0.00020821,7]
[335521205,1724301060018,-500.0,0.00020821,7]
[335521206,1724301060028,-500.0,0.00020821,7]
[335521207,1724301060038,-500.0,0.00020821,7]
[335521208,1724301060048,-500.0,0.00020821,7]
[335521209,1724301060058,-500.0,0.00020821,7]
[335521210,1724301060070,-500.0,0.00020821,7]
[335521211,1724301060080,-500.0,0.00020821,7]
[335521212,1724301060090,-500.0,0.00020821,7]
[335521213,1724301060101,-626.83077955,0.00020821,7]
[335521214,1724301060300,-500.0,0.00020821,7]
[335521215,1724301060311,-501.82,0.00020821,7]
[335521216,1724301060321,-990.24,0.00020821,7]
[335521217,1724301060331,-500.0,0.00020821,7]
[335521218,1724301060342,-360.57047592,0.00020821,7]
[335521219,1724301060353,-500.0,0.00020821,7]
[335521220,1724301060363,-500.0,0.00020821,7]
[335521221,1724301060372,-500.0,0.00020821,7]
[335521222,1724301060381,-500.0,0.00020821,7]
[335521223,1724301060392,-500.0,0.00020821,7]
[335521224,1724301060404,-619.67,0.00020821,7]
[335521225,1724301060414,-500.0,0.00020821,7]
[335521226,1724301060425,-500.0,0.00020821,7]
[335521227,1724301060436,-510.05,0.00020821,7]
[335521228,1724301060447,-515.23093581,0.00020821,7]
[335521229,1724301060459,-500.0,0.00020821,7]
[335521230,1724301060469,-613.86,0.00020821,7]
[335521231,1724301060479,-500.0,0.00020821,7]
[335521232,1724301060489,-509.82589473,0.00020821,7]
[335521233,1724301060501,-500.0,0.00020821,7]
[335521234,1724301060512,-500.0,0.00020821,7]
[335521235,1724301060524,-500.0,0.00020821,7]
[335521236,1724301060534,-500.0,0.00020821,7]
[335521237,1724301060545,-500.0,0.00020821,7]
[335521238,1724301060556,-500.0,0.00020821,7]
[335521239,1724301060567,-500.0,0.00020821,7]
[335521240,1724301060578,-500.0,0.00020821,7]
[335521241,1724301060597,-500.0,0.00020821,7]
[335521242,1724301060613,-500.0,0.00020821,7]
[335521243,1724301060625,-500.0,0.00020821,7]
[335521244,1724301060641,-500.0,0.00020821,7]
[335521245,1724301060654,-509.32,0.00020821,7]
[335521246,1724301060666,-155.42924976,0.00020821,7]
[335521247,1724301060678,-695.3,0.00020821,7]
[335521248,1724301060689,-500.0,0.00020821,7]
[335521249,1724301060701,-944.99,0.00020821,7]
[335521250,1724301060711,-175.0468964,0.00020821,7]
[335521251,1724301060721,-500.0,0.00020821,7]
[335521252,1724301060731,-500.0,0.00020821,7]
[335521253,1724301060741,-500.0,0.00020821,7]
[335521254,1724301060750,-500.0,0.00020821,7]
[335521255,1724301060760,-500.0,0.00020821,7]
[335521256,1724301060770,-500.0,0.00020821,7]
[335521257,1724301060780,-500.0,0.00020821,7]
[335521258,1724301060792,-500.0,0.00020821,7]
[335521259,1724301060805,-500.0,0.00020821,7]
[335521260,1724301060817,-500.0,0.00020821,7]
[335521261,1724301060827,-500.0,0.00020821,7]
[335521262,1724301060841,-500.0,0.00020821,7]
[335521263,1724301060853,-500.0,0.00020821,7]
[335521264,1724301060863,-287.95556408,0.00020821,7]
[335521265,1724301060874,-500.0,0.00020821,7]
[335521266,1724301060884,-500.0,0.00020821,7]
[335521267,1724301060895,-500.0,0.00020821,7]
[335521268,1724301060907,-500.0,0.00020821,7]
[335521269,1724301060918,-500.0,0.00020821,7]
[335521270,1724301060928,-500.0,0.00020821,7]
[335521271,1724301060941,-500.0,0.00020821,7]
[335521272,1724301060951,-500.0,0.00020821,7]
[335521273,1724301060961,-500.0,0.00020821,7]
[335521274,1724301060970,-500.0,0.00020821,7]
[335521275,1724301060980,-500.0,0.00020821,7]
[335521276,1724301060990,-500.0,0.00020821,7]
[335521277,1724301060999,-500.0,0.00020821,7]
[335521278,1724301061009,-500.0,0.00020821,7]
[335521279,1724301061019,-2489.9,0.00020821,7]
[335521280,1724301061029,-500.0,0.00020821,7]
[335521281,1724301061038,-500.0,0.00020821,7]
[335521282,1724301061048,-500.0,0.00020821,7]
[335521283,1724301061057,-500.0,0.00020821,7]
[335521284,1724301061067,-500.0,0.00020821,7]
[335521285,1724301061077,-500.0,0.00020821,7]
[335521286,1724301061087,-518.99,0.00020821,7]
[335521287,1724301061097,-500.0,0.00020821,7]
[335521288,1724301061107,-821.02,0.00020821,7]
[335521289,1724301061117,-500.0,0.00020821,7]
[335521290,1724301061128,-500.0,0.00020821,7]
[335521291,1724301061138,-500.0,0.00020821,7]
[335521292,1724301061148,-576.78,0.00020821,7]
[335521293,1724301061157,-500.0,0.00020821,7]
[335521294,1724301061168,-500.0,0.00020821,7]
[335521295,1724301061178,-500.0,0.00020821,7]
[335521296,1724301061191,-500.0,0.00020821,7]
[335521297,1724301061200,-500.0,0.00020821,7]
[335521298,1724301061210,-500.0,0.00020821,7]
[335521299,1724301061220,-390.0336411,0.00020821,7]
[335521300,1724301061229,-844.9,0.00020821,7]
[335521301,1724301061239,-500.0,0.00020821,7]
[335521302,1724301061248,-604.62,0.00020821,7]
[335521303,1724301061258,-500.0,0.00020821,7]
[335521304,1724301061267,-500.0,0.00020821,7]
[335521305,1724301061277,-500.0,0.00020821,7]
[335521306,1724301061286,-500.0,0.00020821,7]
[335521307,1724301061295,-500.0,0.00020821,7]
[335521308,1724301061305,-2156.17,0.00020821,7]
[335521309,1724301061314,-500.0,0.00020821,7]
[335521310,1724301061324,-500.0,0.00020821,7]
[335521311,1724301061333,-500.0,0.00020821,7]
[335521312,1724301061343,-500.0,0.00020821,7]
[335521313,1724301061353,-500.0,0.00020821,7]
[335521314,1724301061362,-516.51482068,0.00020821,7]
[335521315,1724301061372,-537.9,0.00020821,7]
[335521316,1724301061381,-500.0,0.00020821,7]
[335521317,1724301061391,-500.0,0.00020821,7]
[335521318,1724301061401,-500.0,0.00020821,7]
[335521319,1724301061412,-522.76199597,0.00020821,7]
[335521320,1724301061422,-500.0,0.00020821,7]
[335521321,1724301061432,-598.79,0.00020821,7]
[335521322,1724301061443,-586.0,0.00020821,7]
[335521323,1724301061455,-500.0,0.00020821,7]
[335521324,1724301061467,-500.0,0.00020821,7]
[335521325,1724301061478,-729.05,0.00020821,7]
[335521326,1724301061488,-509.23681066,0.00020821,7]
[335521327,1724301061499,-500.0,0.00020821,7]
[335521328,1724301061510,-638.49,0.00020821,7]
[335521329,1724301061522,-500.0,0.00020821,7]
[335521330,1724301061532,-500.0,0.00020821,7]
[335521331,1724301061543,-598.56,0.00020821,7]
[335521332,1724301061553,-865.41,0.00020821,7]
[335521333,1724301061563,-500.0,0.00020821,7]
[335521334,1724301061573,-500.0,0.00020821,7]
[335521335,1724301061583,-1875.93,0.00020821,7]
[335521336,1724301061595,-500.0,0.00020821,7]
[335521337,1724301061608,-500.0,0.00020821,7]
[335521338,1724301061618,-859.92,0.00020821,7]
[335521339,1724301061630,-500.0,0.00020821,7]
[335521340,1724301061647,-500.0,0.00020821,7]
[335521341,1724301061658,-727.29,0.00020821,7]
[335521342,1724301061670,-500.0,0.00020821,7]
[335521343,1724301061682,-500.0,0.00020821,7]
[335521344,1724301061691,-560.76,0.00020821,7]
[335521345,1724301061700,-500.0,0.00020821,7]
[335521346,1724301061712,-500.0,0.00020821,7]
[335521347,1724301061722,-500.0,0.00020821,7]
[335521348,1724301061732,-500.0,0.00020821,7]
[335521349,1724301061742,-500.0,0.00020821,7]
[335521350,1724301061752,-500.0,0.00020821,7]
[335521351,1724301061763,-500.0,0.00020821,7]
[335521352,1724301061773,-500.0,0.00020821,7]
[335521353,1724301061784,-500.0,0.00020821,7]
[335521354,1724301061794,-500.0,0.00020821,7]
[335521355,1724301061804,-500.0,0.00020821,7]
[335521356,1724301061816,-2365.95,0.00020821,7]
[335521357,1724301061826,-648.18599625,0.00020821,7]
[335521358,1724301061836,-500.0,0.00020821,7]
[335521359,1724301061845,-500.0,0.00020821,7]
[335521360,1724301061855,-600.28998488,0.00020821,7]
[335521361,1724301061865,-2542.88,0.00020821,7]
[335521362,1724301061876,-500.0,0.00020821,7]
[335521363,1724301061886,-500.0,0.00020821,7]
[335521364,1724301061896,-626.6,0.00020821,7]
[335521365,1724301061906,-500.0,0.00020821,7]
[335521366,1724301061915,-500.0,0.00020821,7]
[335521367,1724301061925,-500.0,0.00020821,7]
[335521368,1724301061937,-500.0,0.00020821,7]
[335521369,1724301061946,-500.0,0.00020821,7]
[335521370,1724301061956,-500.0,0.00020821,7]
[335521371,1724301061965,-500.0,0.00020821,7]
[335521372,1724301061975,-500.0,0.00020821,7]
[335521373,1724301061986,-745.34,0.00020821,7]
[335521374,1724301061996,-1229.2,0.00020821,7]
[335521375,1724301062006,-500.0,0.00020821,7]
[335521376,1724301062017,-500.0,0.00020821,7]
[335521377,1724301062026,-500.0,0.00020821,7]
[335521378,1724301062035,-500.0,0.00020821,7]
[335521379,1724301062045,-508.02996767,0.00020821,7]
[335521380,1724301062055,-500.0,0.00020821,7]
[335521381,1724301062065,-500.0,0.00020821,2]
[335521382,1724301062075,-1421.87,0.00020821,7]
[335521383,1724301062085,-500.0,0.00020821,7]
[335521384,1724301062098,-500.0,0.00020821,7]
[335521385,1724301062109,-500.0,0.00020821,7]
[335521386,1724301062119,-500.0,0.00020821,7]
[335521387,1724301062131,-500.0,0.00020821,7]
[335521388,1724301062143,-500.0,0.00020821,7]
[335521389,1724301062153,-500.0,0.00020821,7]
[335521390,1724301062165,-500.0,0.00020821,7]
[335521391,1724301062176,-500.0,0.00020821,7]
[335521392,1724301062189,-500.0,0.00020821,7]
[335521393,1724301062199,-586.07,0.00020821,7]
[335521394,1724301062209,-500.0,0.00020821,7]
[335521395,1724301062219,-201.663362,0.00020821,7]
[335521396,1724301062228,-500.0,0.00020821,7]
[335521397,1724301062238,-500.0,0.00020821,7]
[335521398,1724301062247,-500.0,0.00020821,7]
[335521399,1724301062257,-500.0,0.00020821,7]
[335521400,1724301062267,-500.0,0.00020821,7]
[335521401,1724301062277,-500.0,0.00020821,7]
[335521402,1724301062286,-500.0,0.00020821,7]
[335521403,1724301062296,-3159.86,0.00020821,7]
[335521404,1724301062306,-500.0,0.00020821,7]
[335521405,1724301062316,-500.0,0.00020821,7]
[335521406,1724301062326,-500.0,0.00020821,7]
[335521407,1724301062335,-500.0,0.00020821,7]
[335521408,1724301062345,-500.0,0.00020821,7]
[335521409,1724301062354,-500.0,0.00020821,7]
[335521410,1724301062372,-500.0,0.00020821,7]
[335521411,1724301062394,-5188.02,0.00020821,7]
[335521412,1724301062405,-796.12,0.00020821,7]
[335521413,1724301062416,-500.0,0.00020821,7]
[335521414,1724301062428,-500.0,0.00020821,7]
[335521415,1724301062440,-1116.7,0.00020821,7]
[335521416,1724301062449,-500.0,0.00020821,7]
[335521417,1724301062459,-500.0,0.00020821,7]
[335521418,1724301062470,-500.0,0.00020821,7]
[335521419,1724301062480,-500.0,0.00020821,7]
[335521420,1724301062491,-500.0,0.00020821,7]
[335521421,1724301062502,-12079.38,0.00020821,7]
[335521422,1724301062512,-500.0,0.00020821,7]
[335521423,1724301062523,-3687.12,0.00020821,7]
[335521424,1724301062534,-500.0,0.00020821,7]
[335521425,1724301062545,-500.0,0.00020821,7]
[335521426,1724301062555,-500.0,0.00020821,7]
[335521427,1724301062566,-500.0,0.00020821,7]
[335521428,1724301062575,-500.0,0.00020821,7]
[335521429,1724301062586,-5616.34,0.00020821,7]
[335521430,1724301062596,-500.0,0.00020821,7]
[335521431,1724301062606,-622.13,0.00020821,7]
[335521432,1724301062616,-500.0,0.00020821,7]
[335521433,1724301062626,-20233.42,0.00020821,7]
[335521434,1724301062643,-2792.0,0.00020821,7]
[335521435,1724301062664,-500.0,0.00020821,7]
[335521436,1724301062680,-9511.85,0.00020821,7]
[335521437,1724301062693,-1146.19,0.00020821,7]
[335521438,1724301062702,-2104.35,0.00020821,7]
[335521439,1724301062712,-500.0,0.00020821,7]
[335521440,1724301062722,-500.0,0.00020821,7]
[335521441,1724301062735,-500.0,0.00020821,7]
[335521442,1724301062748,-500.0,0.00020821,7]
[335521443,1724301062761,-156.80935721,0.00020821,7]
[335521444,1724301062773,-500.0,0.00020821,7]
[335521445,1724301062783,-582.69,0.00020821,7]
[335521446,1724301062794,-500.0,0.00020821,7]
[335521447,1724301062806,-500.0,0.00020821,7]
[335521448,1724301062817,-500.0,0.00020821,7]
[335521449,1724301062827,-500.0,0.00020821,7]
[335521450,1724301062836,-500.0,0.00020821,7]
[335521451,1724301062846,-500.0,0.00020821,7]
[335521452,1724301062946,-164.35151459,0.00020821,7]
[335521453,1724301062956,-500.0,0.00020821,7]
[335521454,1724301062966,-500.0,0.00020821,7]
[335521455,1724301062975,-500.0,0.00020821,7]
[335521456,1724301062986,-500.0,0.00020821,7]
[335521457,1724301062997,-500.0,0.00020821,7]
[335521458,1724301063015,-500.0,0.00020821,7]
[335521459,1724301063027,-2508.45,0.00020821,7]
[335521460,1724301063037,-500.0,0.00020821,7]
[335521461,1724301063047,-2530.18,0.00020821,7]
[335521462,1724301063056,-930.2,0.00020821,7]
[335521463,1724301063066,-500.0,0.00020821,7]
[335521464,1724301063075,-500.0,0.00020821,7]
[335521465,1724301063085,-500.0,0.00020821,7]
[335521466,1724301063096,-500.0,0.00020821,7]
[335521467,1724301063106,-1473.89,0.00020821,7]
[335521468,1724301063117,-500.0,0.00020821,7]
[335521469,1724301063127,-1024.08,0.00020821,7]
[335521470,1724301063137,-500.0,0.00020821,7]
[335521471,1724301063146,-500.0,0.00020821,7]
[335521472,1724301063156,-500.0,0.00020821,7]
[335521473,1724301063165,-500.0,0.00020821,7]
[335521474,1724301063175,-578.87,0.00020821,7]
[335521475,1724301063192,-500.0,0.00020821,7]
[335521476,1724301063202,-543.38956162,0.00020821,7]
[335521477,1724301063211,-2995.68,0.00020821,7]
[335521478,1724301063220,-500.0,0.00020821,7]
[335521479,1724301063230,-500.0,0.00020821,7]
[335521480,1724301063239,-1700.92,0.00020821,7]
[335521481,1724301063248,-500.0,0.00020821,7]
[335521482,1724301063257,-500.0,0.00020821,7]
[335521483,1724301063266,-500.0,0.00020821,7]
[335521484,1724301063275,-500.0,0.00020821,7]
[335521485,1724301063284,-1516.78,0.00020821,7]
[335521486,1724301063294,-1746.1,0.00020821,7]
[335521487,1724301063303,-418.17159731,0.00020821,7]
[335521488,1724301063312,-500.0,0.00020821,7]
[335521489,1724301063322,-500.0,0.00020821,7]
[335521490,1724301063331,-605.97189324,0.00020821,7]
[335521491,1724301063340,-500.0,0.00020821,7]
[335521492,1724301063350,-500.0,0.00020821,7]
[335521493,1724301063359,-500.0,0.00020821,7]
[335521494,1724301063369,-500.0,0.00020821,7]
[335521495,1724301063379,-500.0,0.00020821,7]
[335521496,1724301063388,-9014.83,0.00020821,7]
[335521497,1724301063398,-500.0,0.00020821,7]
[335521498,1724301063407,-500.0,0.00020821,7]
[335521499,1724301063416,-500.0,0.00020821,7]
[335521500,1724301063426,-500.0,0.00020821,7]
[335521501,1724301063437,-500.0,0.00020821,7]
[335521502,1724301063447,-2151.56,0.00020821,7]
[335521503,1724301063456,-733.58,0.00020821,7]
[335521504,1724301063469,-500.0,0.00020821,7]
[335521505,1724301063478,-500.0,0.00020821,7]
[335521506,1724301063488,-500.0,0.00020821,7]
[335521507,1724301063497,-500.0,0.00020821,7]
[335521508,1724301063507,-500.0,0.00020821,7]
[335521509,1724301063517,-500.0,0.00020821,7]
[335521510,1724301063526,-863.24,0.00020821,7]
[335521511,1724301063536,-635.96,0.00020821,7]
[335521512,1724301063545,-500.0,0.00020821,7]
[335521513,1724301063555,-2005.19,0.00020821,7]
[335521514,1724301063564,-500.0,0.00020821,2]
[335521515,1724301063574,-500.0,0.00020821,7]
[335521516,1724301063584,-500.0,0.00020821,7]
[335521517,1724301063594,-500.0,0.00020821,7]
[335521518,1724301063603,-500.0,0.00020821,7]
[335521519,1724301063612,-500.0,0.00020821,7]
[335521520,1724301063622,-648.12,0.00020821,7]
[335521521,1724301063632,-500.0,0.00020821,7]
[335521522,1724301063645,-912.69,0.00020821,7]
[335521523,1724301063655,-500.0,0.00020821,7]
[335521524,1724301063665,-3577.9,0.00020821,7]
[335521525,1724301063675,-799.92,0.00020821,7]
[335521526,1724301063687,-500.0,0.00020821,7]
[335521527,1724301063696,-500.0,0.00020821,7]
[335521528,1724301063706,-430.11677474,0.00020821,7]
[335521529,1724301063715,-1034.94,0.00020821,7]
[335521530,1724301063725,-807.61,0.00020821,7]
[335521531,1724301063734,-500.0,0.00020821,7]
[335521532,1724301063744,-508.07,0.00020821,7]
[335521533,1724301063754,-500.0,0.00020821,7]
[335521534,1724301063763,-500.0,0.00020821,7]
[335521535,1724301063773,-521.09,0.00020821,7]
[335521536,1724301063783,-500.0,0.00020821,7]
[335521537,1724301063792,-500.0,0.00020821,7]
[335521538,1724301063802,-500.0,0.00020821,7]
[335521539,1724301063812,-500.0,0.00020821,7]
[335521540,1724301063821,-580.76130296,0.00020821,7]
[335521541,1724301063831,-500.0,0.00020821,7]
[335521542,1724301063841,-500.0,0.00020821,7]
[335521543,1724301063851,-500.0,0.00020821,7]
[335521544,1724301063861,-500.0,0.00020821,7]
[335521545,1724301063870,-500.0,0.00020821,7]
[335521546,1724301063880,-543.35,0.00020821,7]
[335521547,1724301063890,-2199.0,0.00020821,7]
[335521548,1724301063899,-1134.35,0.00020821,7]
[335521549,1724301063908,-500.0,0.00020821,7]
[335521550,1724301063918,-733.53,0.00020821,7]
[335521551,1724301063931,-500.0,0.00020821,2]
[335521552,1724301063941,-500.0,0.00020821,7]
[335521553,1724301063951,-500.0,0.00020821,7]
[335521554,1724301063960,-500.0,0.00020821,7]
[335521555,1724301063970,-500.0,0.00020821,7]
[335521556,1724301063980,-500.0,0.00020821,7]
[335521557,1724301063990,-741.48,0.00020821,7]
[335521558,1724301064000,-555.27,0.00020821,7]
[335521559,1724301064009,-350.0,0.00020868,2]
[335521560,1724301064019,-500.0,0.00021369,7]
[335521561,1724301064028,-500.0,0.00021369,7]
[335521562,1724301064038,-500.0,0.00021369,7]
[335521563,1724301064047,-500.0,0.00021369,7]
[335521564,1724301064056,-500.0,0.00021369,7]
[335521565,1724301064066,-527.01585185,0.00021369,7]
[335521566,1724301064075,-500.0,0.00021369,7]
[335521567,1724301064085,-500.0,0.00021369,7]
[335521568,1724301064095,-500.0,0.00021369,7]
[335521569,1724301064104,-500.0,0.00021369,7]
[335521570,1724301064114,-500.0,0.00021369,7]
[335521571,1724301064123,-500.0,0.00021369,7]
[335521572,1724301064132,-500.0,0.00021369,7]
[335521573,1724301064142,-501.82,0.00021369,7]
[335521574,1724301064152,-990.24,0.00021369,7]
[335521575,1724301064161,-500.0,0.00021369,7]
[335521576,1724301064170,-501.62442222,0.00021369,7]
[335521577,1724301064179,-500.0,0.00021369,7]
[335521578,1724301064189,-500.0,0.00021369,7]
[335521579,1724301064199,-500.0,0.00021369,7]
[335521580,1724301064209,-526.43816736,0.00021369,7]
[335521581,1724301064218,-619.67,0.00021369,7]
[335521582,1724301064227,-500.0,0.00021369,7]
[335521583,1724301064237,-500.0,0.00021369,7]
[335521584,1724301064246,-510.05,0.00021369,7]
[335521585,1724301064256,-500.0,0.00021369,7]
[335521586,1724301064266,-613.86,0.00021369,7]
[335521587,1724301064275,-500.0,0.00021369,7]
[335521588,1724301064285,-500.0,0.00021369,7]
[335521589,1724301064294,-500.0,0.00021369,7]
[335521590,1724301064304,-500.0,0.00021369,7]
[335521591,1724301064315,-500.0,0.00021369,7]
[335521592,1724301064325,-500.0,0.00021369,7]
[335521593,1724301064334,-500.0,0.00021369,7]
[335521594,1724301064343,-500.0,0.00021369,7]
[335521595,1724301064353,-500.0,0.00021369,7]
[335521596,1724301064363,-500.0,0.00021369,7]
[335521597,1724301064373,-500.0,0.00021369,7]
[335521598,1724301064382,-500.0,0.00021369,7]
[335521599,1724301064392,-500.0,0.00021369,7]
[335521600,1724301064401,-509.32,0.00021369,7]
[335521601,1724301064411,-695.3,0.00021369,7]
[335521602,1724301064421,-249.7347571,0.00021369,7]
[335521603,1724301064431,-944.99,0.00021369,7]
[335521604,1724301064443,-500.0,0.00021369,7]
[335521605,1724301064452,-500.0,0.00021369,7]
[335521606,1724301064462,-505.09496888,0.00021369,7]
[335521607,1724301064472,-500.0,0.00021369,7]
[335521608,1724301064483,-500.0,0.00021369,7]
[335521609,1724301064492,-525.43873107,0.00021369,7]
[335521610,1724301064502,-500.0,0.00021369,7]
[335521611,1724301064513,-500.0,0.00021369,7]
[335521612,1724301064522,-500.0,0.00021369,7]
[335521613,1724301064531,-500.0,0.00021369,7]
[335521614,1724301064542,-500.0,0.00021369,7]